bitfinex/quotes_BTCUSD_20250303
["timestamp","ask_amount","ask_price","bid_price","bid_amount"]
[1741018856451,6.8e-07,90723.0,90722.0,0.54442056]
[1741018856760,0.00100068,90723.0,90722.0,0.24442056]
[1741018856962,0.00100068,90723.0,90722.0,0.0545]
[1741018857167,0.00100068,90723.0,90720.0,0.165343]
[1741018857381,0.00100068,90723.0,90722.0,0.16534]
[1741018857555,0.00100068,90723.0,90722.0,0.55064]
[1741018857771,0.00100068,90723.0,90722.0,0.54364]
[1741018857965,6.8e-07,90723.0,90722.0,0.34812]
[1741018858167,0.00100068,90723.0,90722.0,0.35512]
[1741018858321,0.00100068,90723.0,90722.0,0.25064]
[1741018858710,6.8e-07,90723.0,90722.0,0.24364]
[1741018859065,0.00100068,90723.0,90722.0,0.29714]
[1741018859270,0.00100068,90723.0,90722.0,0.70858]
[1741018859480,6.8e-07,90723.0,90722.0,0.59014]
[1741018859715,6.8e-07,90723.0,90722.0,0.69458]
[1741018859923,0.00100068,90723.0,90722.0,0.70858]
[1741018860077,0.00100068,90723.0,90722.0,0.70158]
[1741018860486,0.00100068,90723.0,90722.0,0.60414]
[1741018860686,0.00100068,90723.0,90722.0,0.70158]
[1741018860859,0.00100068,90723.0,90722.0,0.59714]
[1741018861048,0.00100068,90723.0,90722.0,0.70858]
[1741018861249,0.00117078,90723.0,90722.0,0.70858]
[1741018861603,7.8e-07,90723.0,90722.0,0.70158]
[1741018861761,7.8e-07,90723.0,90722.0,0.71612085]
[1741018862103,0.00201,90737.0,90736.0,0.591214]
[1741018862259,0.00240551,90737.0,90736.0,0.591214]
[1741018862685,0.0002398,90781.0,90748.0,0.464292]
[1741018862889,0.0002398,90781.0,90748.0,0.568732]
[1741018863278,0.01067857,90778.0,90748.0,0.57942149]
[1741018863477,0.0002398,90781.0,90748.0,0.57942149]
[1741018863659,0.0002398,90781.0,90748.0,0.57842149]
[1741018863862,0.0002398,90781.0,90748.0,0.41512949]
[1741018864080,0.0002398,90781.0,90748.0,0.58042149]
[1741018864286,9e-07,90750.0,90749.0,0.465291]
[1741018864889,0.00191581,90764.0,90763.0,0.165265]
[1741018865084,0.00203442,90764.0,90763.0,0.164265]
[1741018865308,0.00203442,90764.0,90763.0,0.16580726]
[1741018865861,0.00203442,90764.0,90763.0,0.59690723]
[1741018866064,4.2e-07,90764.0,90763.0,0.6455594]
[1741018866266,4.2e-07,90764.0,90763.0,0.71772285]
[1741018866621,4.2e-07,90764.0,90763.0,0.61332285]
[1741018866791,0.00100042,90764.0,90763.0,0.72472285]
[1741018867147,0.00100042,90764.0,90763.0,0.62032285]
[1741018867549,0.00100042,90764.0,90763.0,0.72472285]
[1741018868055,4.2e-07,90764.0,90763.0,0.81772285]
[1741018868230,4.2e-07,90764.0,90763.0,0.82472285]
[1741018868402,4.2e-07,90764.0,90763.0,0.605782]
[1741018868603,4.2e-07,90764.0,90763.0,0.165265]
[1741018868971,4.2e-07,90764.0,90763.0,0.17380731]
[1741018869260,4.2e-07,90764.0,90763.0,0.18080731]
[1741018869602,4.2e-07,90764.0,90763.0,0.17380731]
[1741018869806,4.2e-07,90764.0,90763.0,0.27116731]
[1741018870010,4.2e-07,90764.0,90763.0,0.28495067]
[1741018870791,4.2e-07,90764.0,90763.0,0.29195067]
[1741018871167,4.2e-07,90764.0,90763.0,0.276625]
[1741018871549,4.2e-07,90764.0,90763.0,0.179265]
[1741018871950,4.2e-07,90764.0,90763.0,0.17380732]
[1741018872169,4.2e-07,90764.0,90763.0,0.179265]
[1741018872523,4.2e-07,90764.0,90763.0,0.11836]
[1741018872671,4.2e-07,90764.0,90763.0,0.283625]
[1741018873074,0.00017042,90764.0,90763.0,0.179265]
[1741018873298,0.00017042,90764.0,90763.0,0.172265]
[1741018874035,0.00017042,90764.0,90763.0,0.17980585]
[1741018874169,0.00117042,90764.0,90763.0,0.18680585]
[1741018874351,0.00117042,90764.0,90763.0,0.17980585]
[1741018874561,0.00117042,90764.0,90763.0,0.18680585]
[1741018874949,0.00217042,90764.0,90763.0,0.19534806]
[1741018875149,0.00117042,90764.0,90763.0,0.18134806]
[1741018875311,0.00217042,90764.0,90763.0,0.014]
[1741018875681,0.00017042,90764.0,90763.0,0.007]
[1741018875880,0.00017042,90764.0,90742.0,0.10432]
[1741018876078,0.00017042,90764.0,90743.0,0.02074639]
[1741018876280,0.16543342,90764.0,90763.0,0.007]
[1741018876513,0.00017042,90764.0,90763.0,0.007]
[1741018876933,0.00117042,90764.0,90763.0,0.179265]
[1741018877197,0.00017042,90764.0,90763.0,0.007]
[1741018877419,0.00017042,90764.0,90744.0,0.01454085]
[1741018877624,0.00117042,90764.0,90763.0,0.172265]
[1741018878246,0.00117042,90764.0,90763.0,0.165265]
[1741018878471,0.00117042,90764.0,90763.0,0.31345999]
[1741018878472,0.00017042,90764.0,90763.0,0.31345999]
[1741018878708,0.00117042,90764.0,90763.0,0.71777999]
[1741018878880,0.00117042,90764.0,90763.0,0.61345999]
[1741018879081,0.00117042,90764.0,90763.0,0.392485]
[1741018879477,0.220291,90789.0,90779.0,0.165236]
[1741018879680,0.00808752,90820.0,90780.0,0.16677617]
[1741018879882,0.0801,90822.0,90780.0,0.18131677]
[1741018880300,0.165178,90812.0,90780.0,0.18131677]
[1741018880518,0.220231,90814.0,90780.0,0.18131677]
[1741018880844,0.00201,90816.0,90780.0,0.18831677]
[1741018881088,0.167179,90816.0,90780.0,0.18831677]
[1741018881346,0.00201,90816.0,90780.0,0.1985755]
[1741018881807,0.0107348,90812.0,90780.0,0.1985755]
[1741018882058,0.0107348,90812.0,90780.0,0.2055755]
[1741018882289,0.0107348,90812.0,90780.0,0.1985755]
[1741018882545,0.00201,90816.0,90790.0,0.370602]
[1741018882744,0.00212861,90816.0,90800.0,0.220263]
[1741018882977,0.00484527,90815.0,90813.0,0.165174]
[1741018883217,0.01298904,90816.0,90798.0,0.10428]
[1741018883509,0.01298904,90816.0,90815.0,0.16517]
[1741018883772,0.01289946,90816.0,90798.0,0.10428]
[1741018883992,0.00484527,90815.0,90800.0,0.004]
[1741018884213,0.00484527,90815.0,90810.0,0.165178]
[1741018884426,0.01289946,90816.0,90801.0,0.01025873]
[1741018884638,0.01289946,90816.0,90801.0,0.23051773]
[1741018884639,0.00484527,90814.0,90801.0,0.23051773]
[1741018884788,0.01289946,90816.0,90801.0,0.23051773]
[1741018884789,0.165194,90802.0,90801.0,0.01025873]
[1741018885128,0.00484527,90802.0,90801.0,0.01025873]
[1741018885514,0.220249,90807.0,90801.0,0.01025873]
[1741018885716,0.23312546,90816.0,90801.0,0.01025873]
[1741018885894,0.00514893,90815.0,90800.0,0.005]
[1741018886104,0.00514893,90815.0,90802.0,0.220257]
[1741018886342,0.00514893,90815.0,90803.0,0.0225257]
[1741018886676,0.00514893,90815.0,90814.0,0.165172]
[1741018886856,0.00514893,90815.0,90812.0,0.165175]
[1741018886999,0.16517,90815.0,90800.0,0.005]
[1741018887203,0.00515627,90814.0,90801.0,0.007]
[1741018887600,0.00515627,90814.0,90801.0,0.005]
[1741018887801,0.00515627,90814.0,90808.0,0.165182]
[1741018888059,0.165176,90812.0,90802.0,0.220259]
[1741018888205,0.22538827,90814.0,90802.0,0.165193]
[1741018888407,0.00514937,90811.0,90800.0,0.28022435]
[1741018888616,0.00212861,90816.0,90815.0,0.16517]
[1741018889540,0.00212861,90816.0,90815.0,0.28707]
[1741018889716,0.00212861,90816.0,90815.0,0.21177]
[1741018889945,0.00212861,90816.0,90815.0,0.17546047]
[1741018890703,0.00212861,90816.0,90815.0,0.17700196]
[1741018890908,0.00212861,90816.0,90815.0,0.21051928]
[1741018891105,0.00212861,90816.0,90815.0,0.24908775]
[1741018891328,0.00212861,90816.0,90815.0,0.22102894]
[1741018891614,0.00212861,90816.0,90815.0,1.98438425]
[1741018891823,6.1e-07,90816.0,90815.0,2.09648425]
[1741018892147,6.1e-07,90816.0,90815.0,1.05076533]
[1741018892333,6.1e-07,90816.0,90815.0,1.04376533]
[1741018892768,6.1e-07,90816.0,90815.0,1.05076533]
[1741018893134,6.1e-07,90816.0,90815.0,1.05776533]
[1741018893333,6.1e-07,90816.0,90815.0,0.51609533]
[1741018893536,6.1e-07,90816.0,90815.0,0.35525533]
[1741018893759,6.1e-07,90816.0,90815.0,0.03375533]
[1741018894163,6.1e-07,90816.0,90815.0,0.19892533]
[1741018895284,6.1e-07,90816.0,90815.0,0.20046662]
[1741018895426,6.1e-07,90816.0,90815.0,0.20746662]
[1741018896096,6.1e-07,90816.0,90815.0,1.68090461]
[1741018896304,6.1e-07,90816.0,90815.0,1.66289846]
[1741018896480,6.1e-07,90816.0,90815.0,1.66989846]
[1741018896884,6.1e-07,90816.0,90815.0,1.66289846]
[1741018897081,6.1e-07,90816.0,90815.0,1.71619846]
[1741018897525,6.1e-07,90816.0,90815.0,1.72457096]
[1741018897747,6.1e-07,90816.0,90815.0,1.73157096]
[1741018898079,6.1e-07,90816.0,90815.0,1.83157096]
[1741018898274,6.1e-07,90816.0,90815.0,2.15307096]
[1741018898869,6.1e-07,90816.0,90815.0,2.15341076]
[1741018899042,5.1e-07,90816.0,90815.0,2.13941076]
[1741018899245,0.0136452,90840.0,90815.0,2.13941076]
[1741018899246,0.0136452,90840.0,90839.0,0.165127]
[1741018899450,0.01404032,90840.0,90839.0,0.70622785]
[1741018899659,3.2e-07,90842.0,90841.0,0.465123]
[1741018899838,3.2e-07,90842.0,90841.0,0.57966385]
[1741018900040,0.00201,90869.0,90855.0,0.1]
[1741018900217,0.00201,90869.0,90868.0,0.70201485]
[1741018900218,1e-06,90869.0,90868.0,0.70201485]
[1741018900421,1e-06,90869.0,90868.0,2.36706231]
[1741018900619,1e-06,90869.0,90868.0,2.40127936]
[1741018900960,0.00201,90895.0,90882.0,0.220065]
[1741018901177,0.00201,90895.0,90894.0,0.291727]
[1741018901347,0.00201,90895.0,90894.0,1.44625851]
[1741018901687,0.00201,90895.0,90894.0,0.291727]
[1741018901888,0.00201,90895.0,90894.0,0.213027]
[1741018902048,0.00201,90895.0,90874.0,0.0457]
[1741018902284,0.00201,90895.0,90880.0,0.00039512]
[1741018902613,0.00201,90895.0,90893.0,0.165029]
[1741018902614,0.00539425,90894.0,90893.0,0.165029]
[1741018902821,0.00201,90895.0,90880.0,0.28061947]
[1741018903025,0.00201,90895.0,90894.0,0.165027]
[1741018903228,0.00201,90895.0,90894.0,0.27068699]
[1741018903481,0.00201,90895.0,90894.0,0.276147]
[1741018904255,0.00201,90895.0,90894.0,0.29068785]
[1741018904481,0.00201,90895.0,90894.0,0.29768785]
[1741018904682,0.00201,90895.0,90894.0,0.33120517]
[1741018904885,0.00201,90895.0,90894.0,0.32420517]
[1741018905061,0.00201,90895.0,90894.0,0.276147]
[1741018905270,0.00201,90895.0,90894.0,0.007]
[1741018905487,0.00201,90895.0,90894.0,0.276147]
[1741018905897,0.00201,90895.0,90894.0,0.11112]
[1741018906101,0.00201,90895.0,90894.0,0.10412]
[1741018906517,0.00201,90895.0,90894.0,0.11112]
[1741018906683,0.00201,90895.0,90894.0,0.11812]
[1741018906885,0.00201,90895.0,90894.0,0.11112]
[1741018907085,0.00201,90895.0,90880.0,0.28061947]
[1741018907300,0.0076279,90895.0,90894.0,0.007]
[1741018907541,0.167035,90895.0,90894.0,0.007]
[1741018907702,0.0076279,90895.0,90894.0,0.007]
[1741018907908,0.0076279,90895.0,90894.0,0.172027]
[1741018908090,0.00201,90895.0,90894.0,0.179027]
[1741018909147,0.00201,90895.0,90894.0,0.18056708]
[1741018909353,0.00201,90895.0,90894.0,0.17356708]
[1741018909541,0.00201,90895.0,90894.0,0.18810793]
[1741018909745,0.00201,90895.0,90894.0,0.19510793]
[1741018909972,0.00201,90895.0,90894.0,0.49510793]
[1741018910176,0.00201,90895.0,90894.0,0.47956785]
[1741018910377,0.00201,90895.0,90894.0,0.48656785]
[1741018910554,0.00201,90895.0,90894.0,0.45159485]
[1741018910750,0.00201,90895.0,90894.0,1.31339485]
[1741018910976,0.0021799,90895.0,90894.0,1.32358745]
[1741018911193,0.0021799,90895.0,90894.0,0.46878745]
[1741018912390,0.0021799,90895.0,90894.0,0.47578745]
[1741018912602,0.0021799,90895.0,90894.0,0.1352726]
[1741018912830,0.0021799,90895.0,90894.0,0.0311926]
[1741018913031,0.0021799,90895.0,90894.0,0.1962196]
[1741018913195,0.0021799,90895.0,90894.0,0.19775971]
[1741018913503,0.0021799,90895.0,90894.0,0.18756711]
[1741018913702,0.0021799,90895.0,90894.0,0.021]
[1741018914497,0.0021799,90895.0,90894.0,0.186027]
[1741018914692,0.0021799,90895.0,90894.0,0.021]
[1741018914896,0.0021799,90895.0,90894.0,0.0451039]
[1741018915118,0.0021799,90895.0,90894.0,0.172027]
[1741018915315,0.0021799,90895.0,90894.0,0.007]
[1741018915902,0.17320477,90895.0,90894.0,0.014]
[1741018916110,0.0021799,90895.0,90894.0,0.014]
[1741018916304,0.00817977,90895.0,90894.0,0.014]
[1741018916549,0.0021799,90895.0,90894.0,0.014]
[1741018916730,0.1672049,90895.0,90894.0,0.014]
[1741018916957,0.17320477,90895.0,90894.0,0.014]
[1741018917570,0.17320477,90895.0,90894.0,0.007]
[1741018917795,0.00817977,90895.0,90880.0,0.00039512]
[1741018917997,0.16504,90887.0,90880.0,0.00039512]
[1741018918208,0.00592774,90886.0,90880.0,0.00039512]
[1741018918544,0.165051,90881.0,90880.0,0.00039512]
[1741018918770,0.17097874,90881.0,90880.0,0.00039512]
[1741018920238,0.49437874,90881.0,90880.0,0.01439512]
[1741018920448,0.49437874,90881.0,90880.0,0.00739512]
[1741018920626,0.49437874,90881.0,90880.0,0.00039512]
[1741018920825,0.49437874,90881.0,90880.0,0.00739512]
[1741018921449,0.49437874,90881.0,90880.0,0.01139512]
[1741018922464,0.60329518,90881.0,90880.0,0.01139512]
[1741018922806,0.49437874,90881.0,90880.0,0.01139512]
[1741018923002,0.49437874,90881.0,90880.0,0.00439512]
[1741018923328,0.49541874,90881.0,90880.0,0.01039512]
[1741018924432,0.49545874,90881.0,90880.0,0.01039512]
[1741018924883,0.49549874,90881.0,90880.0,0.01039512]
[1741018925035,0.49553874,90881.0,90880.0,0.01039512]
[1741018925445,0.49557874,90881.0,90880.0,0.01039512]
[1741018925760,0.33052774,90881.0,90880.0,0.01039512]
[1741018925983,0.33052774,90881.0,90880.0,0.17544712]
[1741018926188,0.00712774,90881.0,90880.0,0.17544712]
[1741018926392,0.0012,90881.0,90880.0,0.17544712]
[1741018927117,0.0012,90881.0,90880.0,0.92827195]
[1741018927338,0.0002,90881.0,90880.0,0.92227195]
[1741018927681,0.0002,90881.0,90880.0,0.92427195]
[1741018928133,0.0012,90881.0,90880.0,0.93127195]
[1741018928341,0.0002,90881.0,90880.0,0.92427195]
[1741018928747,0.0012,90881.0,90880.0,0.93127195]
[1741018929151,0.0012,90881.0,90880.0,0.92527195]
[1741018929557,0.0012,90881.0,90880.0,0.93227195]
[1741018929760,0.0012,90881.0,90880.0,0.94046053]
[1741018929920,0.0012,90881.0,90880.0,0.93346053]
[1741018930333,0.0021799,90895.0,90894.0,0.165027]
[1741018930550,0.0021799,90895.0,90894.0,0.16656694]
[1741018931228,0.0021799,90895.0,90894.0,0.78806694]
[1741018931403,0.00201,90921.0,90903.0,0.165011]
[1741018931718,0.00201,90921.0,90903.0,0.78805058]
[1741018931914,0.00201,90921.0,90903.0,0.786511]
[1741018932330,0.00201,90921.0,90920.0,0.46498]
[1741018932528,0.00201,90921.0,90920.0,0.58998]
[1741018933753,0.00201,90921.0,90920.0,0.59037512]
[1741018934142,0.00201,90947.0,90935.0,0.164952]
[1741018934315,0.00201,90947.0,90946.0,0.164893]
[1741018934533,0.00201,90947.0,90946.0,0.16643192]
[1741018934734,0.00201,90947.0,90946.0,1.30082906]
[1741018934939,0.00201,90947.0,90946.0,0.212493]
[1741018935129,0.00201,90947.0,90946.0,0.31799209]
[1741018935329,0.00201,90947.0,90946.0,0.394653]
[1741018935935,0.00205,90947.0,90946.0,0.394653]
[1741018936137,0.00209,90947.0,90946.0,0.394653]
[1741018936358,0.00213,90947.0,90946.0,0.22976]
[1741018936578,0.00213,90947.0,90946.0,0.0476]
[1741018936579,0.00217,90947.0,90946.0,0.0476]
[1741018936897,0.00221,90947.0,90946.0,0.15156]
[1741018937277,0.00221,90947.0,90946.0,0.007]
[1741018937518,0.00221,90947.0,90946.0,0.014]
[1741018937715,0.00725314,90947.0,90946.0,0.178933]
[1741018937944,0.00221,90947.0,90946.0,0.014]
[1741018938278,0.167141,90947.0,90946.0,0.014]
[1741018938688,0.00738273,90947.0,90946.0,0.007]
[1741018938880,0.00738273,90947.0,90946.0,0.014]
[1741018939149,0.00738273,90947.0,90946.0,0.007]
[1741018939334,0.00221,90947.0,90935.0,0.164952]
[1741018939543,0.00221,90947.0,90934.0,0.10396]
[1741018939772,0.0002,90947.0,90935.0,0.00153942]
[1741018939946,0.164925,90951.0,90946.0,0.007]
[1741018940100,0.16493,90948.0,90946.0,0.007]
[1741018940310,0.00517273,90950.0,90934.0,0.10396]
[1741018940529,0.32061,90968.0,90934.0,0.10396]
[1741018940731,0.164932,90947.0,90946.0,0.007]
[1741018940896,0.164932,90947.0,90934.0,0.007]
[1741018941094,0.00517273,90947.0,90934.0,0.007]
[1741018941335,0.164952,90935.0,90934.0,0.007]
[1741018941531,0.17012473,90935.0,90934.0,0.007]
[1741018941862,0.17012473,90935.0,90934.0,0.171954]
[1741018941863,0.00517273,90935.0,90934.0,0.171954]
[1741018942042,0.00517273,90935.0,90934.0,0.164954]
[1741018942247,0.3,90967.0,90934.0,0.007]
[1741018942455,0.62061,90967.0,90935.0,0.164951]
[1741018942658,0.219893,90953.0,90936.0,0.00153931]
[1741018942860,0.00517273,90966.0,90934.0,0.007]
[1741018943064,0.00521733,90952.0,90935.0,0.00564]
[1741018943272,4e-05,90935.0,90934.0,0.014]
[1741018943472,0.164992,90935.0,90934.0,0.014]
[1741018943672,4e-05,90935.0,90934.0,0.014]
[1741018943894,0.00525057,90935.0,90920.0,0.00193476]
[1741018944099,4e-05,90935.0,90920.0,0.28215901]
[1741018944272,4e-05,90935.0,90934.0,0.007]
[1741018944473,4e-05,90935.0,90920.0,0.00039512]
[1741018944474,4e-05,90935.0,90920.0,0.28061947]
[1741018944674,4e-05,90935.0,90921.0,0.0015395]
[1741018944874,4e-05,90935.0,90934.0,0.007]
[1741018945704,4e-05,90935.0,90934.0,0.0015395]
[1741018945958,4e-05,90935.0,90934.0,0.007]
[1741018946383,4e-05,90935.0,90923.0,0.164973]
[1741018946590,4e-05,90935.0,90922.0,0.164974]
[1741018946591,0.219978,90935.0,90922.0,0.164974]
[1741018946788,4e-05,90935.0,90921.0,0.10392]
[1741018947034,0.00104,90935.0,90921.0,0.11092]
[1741018947230,4e-05,90935.0,90932.0,0.164956]
[1741018947412,4e-05,90935.0,90921.0,0.10392]
[1741018947413,4e-05,90935.0,90924.0,0.00153956]
[1741018947617,0.00104,90935.0,90924.0,0.00153956]
[1741018948018,0.00104,90935.0,90934.0,0.164954]
[1741018948227,0.00204,90935.0,90934.0,0.242454]
[1741018948425,0.00104,90935.0,90934.0,0.242454]
[1741018948627,0.00104,90935.0,90934.0,0.542454]
[1741018948969,0.0001699,90986.0,90966.0,0.164896]
[1741018949123,0.0001699,90986.0,90959.0,0.10392]
[1741018949124,0.01067669,90982.0,90959.0,0.10392]
[1741018949331,0.01067669,90982.0,90964.0,0.1649]
[1741018949540,0.219837,90977.0,90959.0,0.10392]
[1741018949738,0.21983,90980.0,90959.0,0.10392]
[1741018949930,0.21983,90980.0,90959.0,0.10292]
[1741018950437,0.21983,90979.0,90959.0,0.10231512]
[1741018950684,0.0011701,90967.0,90959.0,0.10931512]
[1741018951072,0.00520097,90966.0,90959.0,0.10931512]
[1741018951270,0.164907,90960.0,90959.0,0.10931512]
[1741018951471,0.00520097,90966.0,90959.0,0.10931512]
[1741018951472,0.219862,90966.0,90959.0,0.01439512]
[1741018951793,0.164907,90960.0,90959.0,0.00739512]
[1741018951997,0.17010797,90960.0,90959.0,0.00739512]
[1741018952148,0.17010797,90960.0,90959.0,0.01439512]
[1741018952149,0.18089282,90960.0,90959.0,0.01439512]
[1741018952352,0.01598582,90960.0,90959.0,0.01439512]
[1741018952574,0.17010797,90960.0,90959.0,0.01439512]
[1741018952823,0.00520097,90960.0,90959.0,0.00739512]
[1741018953005,0.0021701,90967.0,90959.0,0.01439512]
[1741018953179,0.164907,90960.0,90959.0,0.00739512]
[1741018953385,0.00521425,90960.0,90959.0,0.00039512]
[1741018953607,0.164907,90960.0,90959.0,0.00739512]
[1741018953806,0.17012125,90960.0,90959.0,0.00739512]
[1741018954239,0.00521425,90960.0,90959.0,0.01339512]
[1741018954529,0.164907,90960.0,90959.0,0.00739512]
[1741018954729,0.164907,90960.0,90959.0,0.01439512]
[1741018954730,0.17012125,90960.0,90959.0,0.01439512]
[1741018955190,0.00521425,90960.0,90959.0,0.17930412]
[1741018955388,0.01134497,90967.0,90959.0,0.17930412]
[1741018955389,0.01134497,90967.0,90959.0,0.01439512]
[1741018955612,0.0001701,90967.0,90966.0,0.164896]
[1741018956189,0.0001701,90967.0,90959.0,0.01439512]
[1741018956190,0.1650661,90967.0,90959.0,0.01439512]
[1741018956389,0.0001701,90967.0,90959.0,0.00039512]
[1741018956596,0.0001701,90967.0,90960.0,0.219876]
[1741018956792,0.0001701,90967.0,90966.0,0.006]
[1741018957216,0.1650641,90967.0,90966.0,0.006]
[1741018957760,0.00538435,90967.0,90959.0,0.00739512]
[1741018957969,0.17027835,90967.0,90966.0,0.006]
[1741018958167,0.17027835,90967.0,90966.0,0.170896]
[1741018958168,0.00538435,90967.0,90966.0,0.170896]
[1741018958374,0.00538435,90967.0,90966.0,0.356876]
[1741018958586,0.0001701,90967.0,90966.0,0.356876]
[1741018958789,0.0001701,90967.0,90966.0,0.0951]
[1741018959006,0.0001701,90967.0,90966.0,0.177896]
[1741018959174,0.0001701,90967.0,90966.0,0.006]
[1741018959175,0.1650641,90967.0,90966.0,0.006]
[1741018959342,0.00538435,90967.0,90959.0,0.00073512]
[1741018959541,0.17027835,90967.0,90966.0,0.007]
[1741018959739,0.00538435,90967.0,90966.0,0.007]
[1741018959961,0.00538435,90967.0,90959.0,0.00673512]
[1741018960352,0.0001701,90967.0,90966.0,0.014]
[1741018960754,0.1650641,90967.0,90966.0,0.007]
[1741018961021,0.17027835,90967.0,90966.0,0.013]
[1741018961235,0.17027835,90967.0,90966.0,0.007]
[1741018961583,0.00538435,90967.0,90959.0,0.00073512]
[1741018961782,0.00538435,90967.0,90959.0,0.00773512]
[1741018961989,0.0001701,90967.0,90959.0,0.00773512]
[1741018962200,0.164907,90960.0,90959.0,0.00773512]
[1741018962401,0.00528168,90960.0,90959.0,0.00773512]
[1741018962606,0.164907,90960.0,90959.0,0.00773512]
[1741018962808,0.17018868,90960.0,90959.0,0.00073512]
[1741018963332,0.00528168,90960.0,90931.0,0.01097495]
[1741018963532,0.00528168,90960.0,90940.0,0.00153929]
[1741018963706,0.164917,90955.0,90948.0,0.164927]
[1741018964083,0.164924,90951.0,90943.0,0.164937]
[1741018964251,0.00527175,90954.0,90939.0,0.00039551]
[1741018964454,0.01097136,90951.0,90942.0,0.164939]
[1741018964658,0.219894,90953.0,90940.0,0.164943]
[1741018964867,0.164933,90946.0,90939.0,0.00039551]
[1741018965241,0.01067149,90951.0,90939.0,0.00039551]
[1741018965463,0.0001701,90967.0,90939.0,0.00039551]
[1741018965464,0.164943,90940.0,90939.0,0.00039551]
[1741018966011,0.001,90955.0,90948.0,0.007]
[1741018966143,0.164927,90949.0,90948.0,0.007]
[1741018966348,0.164943,90940.0,90939.0,0.00739551]
[1741018966548,0.164943,90940.0,90939.0,0.00439551]
[1741018966768,0.164943,90940.0,90939.0,0.00939551]
[1741018967115,0.219913,90946.0,90939.0,0.00539551]
[1741018967249,0.01120008,90951.0,90948.0,0.002]
[1741018967450,0.00848152,90967.0,90939.0,0.00539551]
[1741018967649,0.164927,90949.0,90940.0,0.164942]
[1741018967853,0.0001701,90967.0,90939.0,0.17234051]
[1741018968077,0.0001701,90967.0,90939.0,0.00239551]
[1741018968078,0.3,90965.0,90939.0,0.00239551]
[1741018968273,0.164943,90941.0,90939.0,0.00839551]
[1741018968478,0.164943,90940.0,90939.0,0.00839551]
[1741018968679,0.164928,90949.0,90939.0,0.00239551]
[1741018969028,0.01071636,90965.0,90939.0,0.00139551]
[1741018969227,0.10384,90995.0,90939.0,0.00139551]
[1741018969228,0.219827,90981.0,90941.0,0.0773]
[1741018969448,0.219827,90981.0,90948.0,0.004]
[1741018969622,0.01102978,90967.0,90949.0,0.00153901]
[1741018969802,0.0001701,90967.0,90949.0,0.00153901]
[1741018970146,0.0001701,90967.0,90962.0,0.164903]
[1741018970349,0.0001701,90967.0,90950.0,0.00153896]
[1741018970577,0.0011701,90967.0,90966.0,0.212496]
[1741018970732,0.0011701,90967.0,90966.0,0.21403481]
[1741018972154,0.0011701,90967.0,90966.0,0.0546]
[1741018972356,0.0011701,90967.0,90966.0,0.219496]
[1741018972557,0.0001701,90967.0,90966.0,0.212496]
[1741018972937,0.0001701,90967.0,90966.0,0.0616]
[1741018973156,0.0001701,90967.0,90966.0,0.0546]
[1741018973319,0.0001701,90967.0,90966.0,0.007]
[1741018973519,0.0001701,90967.0,90966.0,0.014]
[1741018973748,0.00551937,90967.0,90966.0,0.007]
[1741018973941,0.1650641,90967.0,90966.0,0.007]
[1741018974146,0.00551937,90967.0,90966.0,0.007]
[1741018974438,0.00551937,90967.0,90966.0,0.014]
[1741018974640,0.0001701,90967.0,90966.0,0.014]
[1741018974837,0.00551937,90967.0,90966.0,0.007]
[1741018975538,0.17041337,90967.0,90966.0,0.007]
[1741018975746,0.1650641,90967.0,90966.0,0.014]
[1741018975939,0.17041337,90967.0,90966.0,0.014]
[1741018976183,0.00551937,90967.0,90966.0,0.014]
[1741018976545,0.17041337,90967.0,90966.0,0.014]
[1741018976748,0.00551937,90967.0,90966.0,0.007]
[1741018977135,0.00551937,90967.0,90966.0,0.178896]
[1741018977335,0.0001701,90967.0,90966.0,0.178896]
[1741018977535,0.0001701,90967.0,90966.0,0.171896]
[1741018977848,0.0001701,90967.0,90966.0,0.007]
[1741018978047,0.0001701,90967.0,90966.0,0.014]
[1741018978457,0.0001701,90967.0,90959.0,0.164908]
[1741018978697,0.0011701,90967.0,90966.0,0.014]
[1741018978900,0.1660641,90967.0,90966.0,0.014]
[1741018979052,0.0011701,90967.0,90966.0,0.007]
[1741018979281,0.00551937,90967.0,90966.0,0.007]
[1741018979482,0.0001701,90967.0,90958.0,0.219879]
[1741018979690,0.00551937,90967.0,90959.0,0.00153895]
[1741018979888,0.0001701,90967.0,90966.0,0.007]
[1741018980071,0.0011701,90967.0,90966.0,0.007]
[1741018980470,0.0011701,90967.0,90966.0,0.014]
[1741018981097,0.1660641,90967.0,90966.0,0.014]
[1741018981298,0.1650641,90967.0,90966.0,0.007]
[1741018981649,0.0011701,90967.0,90959.0,0.171909]
[1741018981815,0.164896,90967.0,90959.0,0.007]
[1741018981983,0.00201,90974.0,90966.0,0.007]
[1741018982383,0.001,90967.0,90966.0,0.007]
[1741018982591,0.001,90967.0,90966.0,0.014]
[1741018982814,0.00201,90974.0,90966.0,0.007]
[1741018983015,0.00201,90974.0,90954.0,0.0015389]
[1741018983372,0.00301,90974.0,90966.0,0.012]
[1741018983549,0.00301,90974.0,90968.0,0.164892]
[1741018983855,0.00301,90974.0,90966.0,0.012]
[1741018983856,0.00017,90967.0,90966.0,0.171896]
[1741018984692,0.00017,90967.0,90966.0,0.0552]
[1741018984868,0.00017,90967.0,90966.0,0.04859551]
[1741018985069,0.00017,90967.0,90966.0,0.21349151]
[1741018985271,0.00017,90967.0,90966.0,0.00739551]
[1741018985552,0.165064,90967.0,90966.0,0.00739551]
[1741018986020,0.166064,90967.0,90966.0,0.01439551]
[1741018986183,0.1713956,90967.0,90966.0,0.01439551]
[1741018988082,0.17139565,90967.0,90966.0,0.00739551]
[1741018988293,0.2036826,90967.0,90966.0,0.00739551]
[1741018988479,0.2036826,90967.0,90966.0,0.01139551]
[1741018988677,0.17139565,90967.0,90966.0,0.00439551]
[1741018988963,0.17139565,90967.0,90966.0,0.00039551]
[1741018989095,0.17139565,90967.0,90966.0,0.00539551]
[1741018989294,0.18434704,90967.0,90966.0,0.00239551]
[1741018989523,0.18434704,90967.0,90940.0,0.00034]
[1741018989524,0.3387867,90967.0,90940.0,0.00034]
[1741018989686,0.164942,90941.0,90940.0,0.00073623]
[1741018990097,0.1701962,90941.0,90940.0,0.00073623]
[1741018990511,0.17119625,90941.0,90940.0,0.00073623]
[1741018991047,0.3,90936.0,90890.0,0.0784]
[1741018991225,0.165014,90901.0,90900.0,0.00039662]